fUSD/lending_fUSD_20260611
["ID","MTS","AMOUNT","RATE_DAILY","PERIOD"]
[424744795,1781119840000,-500.0,0.00014999,2]
[424744797,1781119840000,-500.0,0.00014999,2]
[424744693,1781119840000,-1188.95161168,0.000149,2]
[424744801,1781119840000,-500.0,0.00014999,2]
[424744808,1781119840000,-500.0,0.00014999,2]
[424744806,1781119840000,-500.0,0.00014999,2]
[424744810,1781119840000,-500.0,0.00014999,2]
[424744803,1781119840000,-500.0,0.00014999,2]
[424744793,1781119840000,-500.0,0.00014999,2]
[424744775,1781119840000,-500.0,0.00014999,2]
[424744760,1781119840000,-2126.8,0.00014999,2]
[424744799,1781119840000,-500.0,0.00014999,2]
[424744756,1781119840000,-2126.8,0.00014999,2]
[424744697,1781119840000,-5700.76918936,0.000149,2]
[424744758,1781119840000,-2126.8,0.00014999,2]
[424744699,1781119840000,-3649.41326642,0.000149,2]
[424744701,1781119840000,-1500.0,0.00014906,2]
[424744707,1781119840000,-5467.82294695,0.00014976,2]
[424744705,1781119840000,-350.0,0.00014944,4]
[424744709,1781119840000,-500.0,0.00014983,2]
[424744715,1781119840000,-500.0,0.00014983,2]
[424744712,1781119840000,-500.0,0.00014983,2]
[424744717,1781119840000,-2726.6108098,0.00014984,2]
[424744719,1781119840000,-211765.6138792,0.00014984,2]
[424744721,1781119840000,-3882.4516729,0.00014984,2]
[424744723,1781119840000,-466.77001847,0.00014984,2]
[424744703,1781119840000,-150.0,0.00014907,2]
[424744742,1781119840000,-852.44863357,0.0001499,2]
[424744725,1781119840000,-1581.1139374,0.00014984,2]
[424744750,1781119840000,-500.0,0.00014998,2]
[424744754,1781119840000,-500.0,0.00014998,2]
[424744738,1781119840000,-852.44863357,0.00014989,2]
[424744734,1781119840000,-222.56365309,0.00014986,2]
[424744744,1781119840000,-500.0,0.00014998,2]
[424744728,1781119840000,-244.03049337,0.00014986,2]
[424744732,1781119840000,-215.44236381,0.00014986,2]
[424744740,1781119840000,-852.44863357,0.0001499,2]
[424744736,1781119840000,-190.96821533,0.00014986,2]
[424744730,1781119840000,-167.4955917,0.00014986,2]
[424744748,1781119840000,-500.0,0.00014998,2]
[424744866,1781119841000,-182.4905201,0.00014999,2]
[424744885,1781119841000,-500.0,0.00014999,2]
[424744868,1781119841000,-593.17756439,0.00014999,2]
[424744872,1781119841000,-2000.0,0.00014999,2]
[424744875,1781119841000,-500.0,0.00014999,2]
[424744879,1781119841000,-500.0,0.00014999,2]
[424744881,1781119841000,-500.0,0.00014999,2]
[424744883,1781119841000,-500.0,0.00014999,2]
[424744870,1781119841000,-250.0,0.00014999,2]
[424744896,1781119841000,-500.0,0.00014999,2]
[424744887,1781119841000,-500.0,0.00014999,2]
[424744894,1781119841000,-500.0,0.00014999,2]
[424744900,1781119841000,-500.0,0.00014999,2]
[424744912,1781119841000,-500.0,0.00014999,2]
[424744907,1781119841000,-500.0,0.00014999,2]
[424744892,1781119841000,-500.0,0.00014999,2]
[424744903,1781119841000,-500.0,0.00014999,2]
[424744855,1781119841000,-599.72,0.00014999,2]
[424744909,1781119841000,-500.0,0.00014999,2]
[424744877,1781119841000,-500.0,0.00014999,2]
[424744863,1781119841000,-500.0,0.00014999,2]
[424744837,1781119841000,-599.72,0.00014999,2]
[424744859,1781119841000,-599.75191774,0.00014999,2]
[424744898,1781119841000,-500.0,0.00014999,2]
[424744812,1781119841000,-500.0,0.00014999,2]
[424744815,1781119841000,-560.94456704,0.00014999,2]
[424744817,1781119841000,-630.39633207,0.00014999,2]
[424744824,1781119841000,-599.72,0.00014999,2]
[424744822,1781119841000,-599.72,0.00014999,2]
[424744819,1781119841000,-599.72,0.00014999,2]
[424744826,1781119841000,-599.72,0.00014999,2]
[424744828,1781119841000,-599.72,0.00014999,2]
[424744857,1781119841000,-599.72,0.00014999,2]
[424744830,1781119841000,-599.72,0.00014999,2]
[424744832,1781119841000,-599.72,0.00014999,2]
[424744835,1781119841000,-599.72,0.00014999,2]
[424744841,1781119841000,-599.72,0.00014999,2]
[424744846,1781119841000,-599.72,0.00014999,2]
[424744843,1781119841000,-599.72,0.00014999,2]
[424744852,1781119841000,-599.72,0.00014999,2]
[424744850,1781119841000,-599.72,0.00014999,2]
[424744848,1781119841000,-599.72,0.00014999,2]
[424744861,1781119841000,-500.0,0.00014999,2]
[424744839,1781119841000,-599.72,0.00014999,2]
[424744889,1781119841000,-500.0,0.00014999,2]
[424744954,1781119841000,-500.0,0.00014999,2]
[424744915,1781119841000,-500.0,0.00014999,2]
[424744961,1781119841000,-145081.36015462,0.00015,2]
[424744964,1781119841000,-300.0,0.00015,2]
[424744949,1781119841000,-500.0,0.00014999,2]
[424744951,1781119841000,-500.0,0.00014999,2]
[424744957,1781119841000,-500.0,0.00014999,2]
[424744953,1781119841000,-517.7,0.00014999,2]
[424744956,1781119841000,-500.0,0.00014999,2]
[424744959,1781119841000,-316.16211611,0.00014999,2]
[424744969,1781119841000,-1103.0,0.00015,2]
[424744966,1781119841000,-757.29,0.00015,2]
[424744972,1781119841000,-241.49,0.00015,2]
[424744974,1781119841000,-626.53,0.00015,2]
[424744977,1781119841000,-156.63,0.00015,2]
[424744976,1781119841000,-261.06,0.00015,2]
[424744979,1781119841000,-229.05,0.00015,2]
[424744980,1781119841000,-166.0,0.00015,2]
[424744986,1781119841000,-6910.1280408,0.00015,2]
[424744990,1781119841000,-400.0,0.00015,2]
[424744992,1781119841000,-3200.0,0.00015,2]
[424744905,1781119841000,-500.0,0.00014999,2]
[424744971,1781119841000,-1989002.50091923,0.00015,2]
[424744967,1781119841000,-166.67799839,0.00015,8]
[424744982,1781119841000,-2472721.11841621,0.00015,2]
[424744948,1781119841000,-500.0,0.00014999,2]
[424744918,1781119841000,-500.0,0.00014999,2]
[424744923,1781119841000,-500.0,0.00014999,2]
[424744962,1781119841000,-150.0,0.00015,2]
[424744927,1781119841000,-500.0,0.00014999,2]
[424744925,1781119841000,-500.0,0.00014999,2]
[424744920,1781119841000,-500.0,0.00014999,2]
[424744922,1781119841000,-500.0,0.00014999,2]
[424744928,1781119841000,-500.0,0.00014999,2]
[424744930,1781119841000,-500.0,0.00014999,2]
[424744931,1781119841000,-500.0,0.00014999,2]
[424744938,1781119841000,-500.0,0.00014999,2]
[424744936,1781119841000,-500.0,0.00014999,2]
[424744935,1781119841000,-500.0,0.00014999,2]
[424744942,1781119841000,-500.0,0.00014999,2]
[424744947,1781119841000,-500.0,0.00014999,2]
[424744939,1781119841000,-500.0,0.00014999,2]
[424744945,1781119841000,-500.0,0.00014999,2]
[424744941,1781119841000,-500.0,0.00014999,2]
[424744944,1781119841000,-500.0,0.00014999,2]
[424744933,1781119841000,-500.0,0.00014999,2]
[424744917,1781119841000,-500.0,0.00014999,2]
[424745006,1781119842000,-2203.687569,0.000103,2]
[424745005,1781119842000,-522.9232407,0.000103,2]
[424745246,1781119846000,-32574.99670889,0.000103,2]
[424745245,1781119846000,-2112.96536541,0.000103,2]
[424745314,1781120907000,-954.02,9.8e-05,2]
[424745315,1781120907000,-838.39116673,9.844e-05,2]
[424745313,1781120907000,-504.47,9.76e-05,2]
[424745312,1781120907000,-228.4939979,9.5e-05,2]
[424745310,1781120907000,-275.11676134,9.399e-05,2]
[424745311,1781120907000,-150.0,9.493e-05,2]
[424745342,1781121032000,-500.0,0.00010199,2]
[424745344,1781121032000,-500.0,0.00010199,2]
[424745353,1781121032000,-500.0,0.00010199,2]
[424745346,1781121032000,-34.48987268,0.00010199,2]
[424745343,1781121032000,-186.47678224,0.00010199,2]
[424745345,1781121032000,-465.51012732,0.00010199,2]
[424745349,1781121032000,-500.0,0.00010199,2]
[424745348,1781121032000,-322.93372352,0.00010199,2]
[424745347,1781121032000,-271.26858681,0.00010199,2]
[424745350,1781121032000,-500.0,0.00010199,2]
[424745355,1781121032000,-500.0,0.00010199,2]
[424745358,1781121032000,-500.0,0.00010199,2]
[424745360,1781121032000,-500.0,0.00010199,2]
[424745352,1781121032000,-161.34184717,0.00010199,2]
[424745351,1781121032000,-500.0,0.00010199,2]
[424745339,1781121032000,-344.81306968,0.00010199,2]
[424745325,1781121032000,-1538.5096696,9.695e-05,2]
[424745336,1781121032000,-166.78,0.0001005,2]
[424745323,1781121032000,-562.50439,9.695e-05,2]
[424745324,1781121032000,-676.9659404,9.695e-05,2]
[424745332,1781121032000,-428.64970531,9.972e-05,2]
[424745357,1781121032000,-423.38637071,0.00010199,2]
[424745330,1781121032000,-613.04,9.877e-05,2]
[424745327,1781121032000,-999.18754634,9.699e-05,2]
[424745329,1781121032000,-391.21883327,9.844e-05,2]
[424745338,1781121032000,-349.79383988,0.00010199,2]
[424745326,1781121032000,-1000.81245366,9.699e-05,2]
[424745328,1781121032000,-150.0,9.791e-05,2]
[424745334,1781121032000,-160.0,9.986e-05,2]
[424745333,1781121032000,-571.35029469,9.972e-05,2]
[424745337,1781121032000,-852.44863357,0.0001019,2]
[424745335,1781121032000,-150.0,9.99e-05,2]
[424745340,1781121032000,-1305.39309044,0.00010199,2]
[424745341,1781121032000,-250.0,0.00010199,2]
[424745331,1781121032000,-205.0,9.888e-05,2]
[424745363,1781121032000,-158.36925155,0.00010199,2]
[424745371,1781121032000,-500.0,0.00010199,2]
[424745361,1781121032000,-341.63074845,0.00010199,2]
[424745385,1781121032000,-500.0,0.00010199,2]
[424745381,1781121032000,-500.0,0.00010199,2]
[424745384,1781121032000,-500.0,0.00010199,2]
[424745382,1781121032000,-500.0,0.00010199,2]
[424745386,1781121032000,-500.0,0.00010199,2]
[424745391,1781121032000,-500.0,0.00010199,2]
[424745392,1781121032000,-500.0,0.00010199,2]
[424745399,1781121032000,-914.65995672,0.00010199,2]
[424745393,1781121032000,-500.0,0.00010199,2]
[424745397,1781121032000,-914.65995672,0.00010199,2]
[424745398,1781121032000,-914.65995672,0.00010199,2]
[424745390,1781121032000,-500.0,0.00010199,2]
[424745396,1781121032000,-914.65995672,0.00010199,2]
[424745394,1781121032000,-626.04001537,0.00010199,2]
[424745395,1781121032000,-914.65995672,0.00010199,2]
[424745354,1781121032000,-500.0,0.00010199,2]
[424745380,1781121032000,-500.0,0.00010199,2]
[424745383,1781121032000,-500.0,0.00010199,2]
[424745387,1781121032000,-500.0,0.00010199,2]
[424745359,1781121032000,-500.0,0.00010199,2]
[424745365,1781121032000,-500.0,0.00010199,2]
[424745367,1781121032000,-500.0,0.00010199,2]
[424745375,1781121032000,-372.63074845,0.00010199,2]
[424745368,1781121032000,-500.0,0.00010199,2]
[424745377,1781121032000,-500.0,0.00010199,2]
[424745378,1781121032000,-202.26646698,0.00010199,2]
[424745376,1781121032000,-127.36925155,0.00010199,2]
[424745366,1781121032000,-500.0,0.00010199,2]
[424745372,1781121032000,-500.0,0.00010199,2]
[424745374,1781121032000,-500.0,0.00010199,2]
[424745370,1781121032000,-500.0,0.00010199,2]
[424745373,1781121032000,-500.0,0.00010199,2]
[424745379,1781121032000,-297.73353302,0.00010199,2]
[424745388,1781121032000,-500.0,0.00010199,2]
[424745369,1781121032000,-500.0,0.00010199,2]
[424745389,1781121032000,-642.62868191,0.00010199,2]
[424745400,1781121033000,-320.34051026,0.00010199,2]
[424745403,1781121033000,-528.15276275,0.00010199,2]
[424745401,1781121033000,-594.31944646,0.00010199,2]
[424745402,1781121033000,-386.50719397,0.00010199,2]
[424745404,1781121033000,-323.11798088,0.00010199,2]
[424745429,1781121040000,-914.65995672,0.00010199,2]
[424745431,1781121040000,-914.65995672,0.00010199,2]
[424745426,1781121040000,-914.65995672,0.00010199,2]
[424745430,1781121040000,-914.65995672,0.00010199,2]
[424745428,1781121040000,-914.65995672,0.00010199,2]
[424745434,1781121040000,-914.65995672,0.00010199,2]
[424745435,1781121040000,-914.65995672,0.00010199,2]
[424745433,1781121040000,-914.65995672,0.00010199,2]
[424745438,1781121040000,-914.65995672,0.00010199,2]
[424745445,1781121040000,-892.44678636,0.00010199,2]
[424745442,1781121040000,-892.44678636,0.00010199,2]
[424745443,1781121040000,-892.44678636,0.00010199,2]
[424745444,1781121040000,-892.44678636,0.00010199,2]
[424745441,1781121040000,-892.44678636,0.00010199,2]
[424745436,1781121040000,-914.65995672,0.00010199,2]
[424745427,1781121040000,-914.65995672,0.00010199,2]
[424745425,1781121040000,-914.65995672,0.00010199,2]
[424745424,1781121040000,-914.65995672,0.00010199,2]
[424745423,1781121040000,-914.65995672,0.00010199,2]
[424745407,1781121040000,-591.54197584,0.00010199,2]
[424745408,1781121040000,-914.65995672,0.00010199,2]
[424745409,1781121040000,-914.65995672,0.00010199,2]
[424745411,1781121040000,-914.65995672,0.00010199,2]
[424745412,1781121040000,-914.65995672,0.00010199,2]
[424745415,1781121040000,-914.65995672,0.00010199,2]
[424745413,1781121040000,-914.65995672,0.00010199,2]
[424745446,1781121040000,-892.44678636,0.00010199,2]
[424745410,1781121040000,-914.65995672,0.00010199,2]
[424745416,1781121040000,-914.65995672,0.00010199,2]
[424745420,1781121040000,-914.65995672,0.00010199,2]
[424745417,1781121040000,-914.65995672,0.00010199,2]
[424745419,1781121040000,-914.65995672,0.00010199,2]
[424745432,1781121040000,-914.65995672,0.00010199,2]
[424745421,1781121040000,-914.65995672,0.00010199,2]
[424745422,1781121040000,-914.65995672,0.00010199,2]
[424745414,1781121040000,-914.65995672,0.00010199,2]
[424745440,1781121040000,-914.65995672,0.00010199,2]
[424745418,1781121040000,-914.65995672,0.00010199,2]
[424745448,1781121040000,-892.44678636,0.00010199,2]
[424745494,1781121040000,-2500.0,0.00010791,2]
[424745492,1781121040000,-2580.6583,0.00010791,2]
[424745488,1781121040000,-6820.62317621,0.00010791,2]
[424745496,1781121040000,-2491.4698901,0.000108,2]
[424745500,1781121040000,-152.51561585,0.00010837,2]
[424745509,1781121040000,-1300.24321182,0.0001089,3]
[424745507,1781121040000,-199.44997292,0.0001089,3]
[424745490,1781121040000,-33274.8187,0.00010791,2]
[424745498,1781121040000,-9500.0,0.000108,3]
[424745511,1781121040000,-1300.24321183,0.0001089,3]
[424745520,1781121040000,-7295.32840731,0.000109,2]
[424745513,1781121040000,-1079.2054042,0.0001089,3]
[424745515,1781121040000,-1079.2054042,0.0001089,3]
[424745516,1781121040000,-19100.0,0.000109,3]
[424745459,1781121040000,-163.65,0.000102,2]
[424745518,1781121040000,-7295.32840734,0.000109,2]
[424745502,1781121040000,-1972.42,0.00010859,2]
[424745483,1781121040000,-31763.5256,0.00010691,2]
[424745504,1781121040000,-166.78,0.0001088,2]
[424745470,1781121040000,-284.95203121,0.00010323,2]
[424745450,1781121040000,-892.44678636,0.00010199,2]
[424745461,1781121040000,-1500000.0,0.000102,2]
[424745485,1781121040000,-500.0,0.00010747,2]
[424745452,1781121040000,-892.44678636,0.00010199,2]
[424745451,1781121040000,-892.44678636,0.00010199,2]
[424745455,1781121040000,-892.44678631,0.00010199,2]
[424745453,1781121040000,-892.44678636,0.00010199,2]
[424745447,1781121040000,-892.44678636,0.00010199,2]
[424745457,1781121040000,-500.1525,0.000102,2]
[424745449,1781121040000,-892.44678636,0.00010199,2]
[424745465,1781121040000,-61931.79869982,0.000103,2]
[424745468,1781121040000,-180.54134098,0.000103,2]
[424745481,1781121040000,-6821.1652,0.00010691,2]
[424745472,1781121040000,-254.79298558,0.00010339,2]
[424745478,1781121040000,-1972.42,0.00010594,2]
[424745474,1781121040000,-166.78,0.00010465,2]
[424745463,1781121040000,-150.0,0.00010299,2]
[424745476,1781121040000,-500.0,0.00010473,2]
[424745586,1781121041000,-9999.99,0.00011281,2]
[424745602,1781121041000,-1198.69,0.00011281,2]
[424745596,1781121041000,-9999.99,0.00011281,2]
[424745598,1781121041000,-7664.71,0.00011281,2]
[424745588,1781121041000,-14627.39,0.00011281,2]
[424745593,1781121041000,-3439.06,0.00011281,2]
[424745591,1781121041000,-1218.95,0.00011281,2]
[424745582,1781121041000,-299.99,0.00011281,2]
[424745606,1781121041000,-166.66,0.00011288,2]
[424745600,1781121041000,-9999.99,0.00011281,2]
[424745622,1781121041000,-166.66,0.00011507,2]
[424745613,1781121041000,-255.0,0.00011319,2]
[424745616,1781121041000,-500.0,0.00011385,2]
[424745605,1781121041000,-999.99,0.00011281,2]
[424745611,1781121041000,-500.0,0.00011295,2]
[424745608,1781121041000,-166.78,0.00011294,2]
[424745619,1781121041000,-166.66,0.00011397,2]
[424745617,1781121041000,-1972.42,0.00011388,2]
[424745626,1781121041000,-860.76641632,0.0001153,2]
[424745638,1781121041000,-500.0,0.00011534,2]
[424745627,1781121041000,-150.0,0.00011534,2]
[424745584,1781121041000,-150.99,0.00011281,2]
[424745630,1781121041000,-150.0,0.00011534,2]
[424745624,1781121041000,-302.969635,0.0001153,2]
[424745579,1781121041000,-7849.08,0.00011281,2]
[424745545,1781121041000,-170.61945506,0.00011005,7]
[424745575,1781121041000,-4999.99,0.00011281,2]
[424745631,1781121041000,-150.0,0.00011534,2]
[424745521,1781121041000,-2000.0,0.00010911,2]
[424745535,1781121041000,-150.0,0.00010959,2]
[424745524,1781121041000,-500.0,0.00010958,2]
[424745526,1781121041000,-500.0,0.00010958,2]
[424745528,1781121041000,-500.0,0.00010958,2]
[424745531,1781121041000,-500.0,0.00010958,2]
[424745537,1781121041000,-150.0,0.00010959,2]
[424745552,1781121041000,-166.66,0.00011068,2]
[424745539,1781121041000,-166.66,0.00010959,2]
[424745533,1781121041000,-500.0,0.00010958,2]
[424745550,1781121041000,-954.02,0.00011025,2]
[424745541,1781121041000,-848.69,0.00010981,2]
[424745548,1781121041000,-500.0,0.00011021,2]
[424745554,1781121041000,-300.0,0.00011098,2]
[424745556,1781121041000,-500.0,0.00011098,2]
[424745558,1781121041000,-76769.27708526,0.00011099,2]
[424745561,1781121041000,-76769.27708525,0.00011099,2]
[424745563,1781121041000,-1972.42,0.00011123,2]
[424745577,1781121041000,-148222.59,0.00011281,2]
[424745568,1781121041000,-76769.27708525,0.00011221,2]
[424745565,1781121041000,-166.66,0.00011178,2]
[424745570,1781121041000,-152.5,0.00011233,2]
[424745572,1781121041000,-300.0,0.00011255,2]
[424745632,1781121041000,-218.83171562,0.00011534,2]
[424745543,1781121041000,-2000.0,0.00010991,2]
[424745635,1781121041000,-500.0,0.00011534,2]
[424745665,1781121041000,-860.76641632,0.00011888,2]
[424745671,1781121041000,-160.0,0.00011983,2]
[424745666,1781121041000,-38200.0,0.000119,4]
[424745664,1781121041000,-500.0,0.00011843,2]
[424745672,1781121041000,-206.371207,0.00011983,2]
[424745667,1781121041000,-191.982836,0.00011923,2]
[424745670,1781121041000,-860.76641632,0.00011968,2]
[424745669,1781121041000,-189.37024694,0.00011966,2]
[424745668,1781121041000,-860.76641632,0.0001193,2]
[424745673,1781121041000,-252.742415,0.00011983,2]
[424745675,1781121041000,-177.474515,0.00011986,2]
[424745662,1781121041000,-1638.77828422,0.00011823,2]
[424745677,1781121041000,-160.0,0.00011986,2]
[424745678,1781121041000,-199.227469,0.00011986,2]
[424745679,1781121041000,-238.454939,0.00011986,2]
[424745680,1781121041000,-860.76641632,0.00012003,2]
[424745674,1781121041000,-45403.1755877,0.00011984,2]
[424745682,1781121041000,-160.0,0.00012046,2]
[424745681,1781121041000,-860.76641632,0.00012036,2]
[424745683,1781121041000,-295.466411,0.00012046,2]
[424745685,1781121041000,-4194.35,0.00012055,2]
[424745687,1781121041000,-500.0,0.00012086,2]
[424745684,1781121041000,-430.932823,0.00012046,2]
[424745686,1781121041000,-860.76641632,0.00012067,2]
[424745676,1781121041000,-268.865105,0.00011986,2]
[424745663,1781121041000,-860.76641632,0.0001184,2]
[424745634,1781121041000,-500.0,0.00011534,2]
[424745657,1781121041000,-202.858175,0.00011744,2]
[424745636,1781121041000,-500.0,0.00011534,2]
[424745637,1781121041000,-500.0,0.00011534,2]
[424745633,1781121041000,-500.0,0.00011534,2]
[424745640,1781121041000,-500.0,0.00011534,2]
[424745639,1781121041000,-500.0,0.00011534,2]
[424745644,1781121041000,-500.0,0.00011534,2]
[424745661,1781121041000,-177.0,0.000118,2]
[424745642,1781121041000,-500.0,0.00011534,2]
[424745648,1781121041000,-7295.32840731,0.00011542,2]
[424745649,1781121041000,-500.0,0.00011569,2]
[424745646,1781121041000,-500.0,0.00011534,2]
[424745647,1781121041000,-230.9383663,0.00011534,2]
[424745641,1781121041000,-500.0,0.00011534,2]
[424745645,1781121041000,-500.0,0.00011534,2]
[424745651,1781121041000,-1972.42,0.00011653,2]
[424745660,1781121041000,-28600.0,0.000118,4]
[424745650,1781121041000,-255.9291826,0.00011652,7]
[424745659,1781121041000,-860.76641632,0.00011783,2]
[424745652,1781121041000,-4481.62276617,0.00011683,2]
[424745655,1781121041000,-76769.27708525,0.00011733,2]
[424745656,1781121041000,-160.0,0.00011744,2]
[424745654,1781121041000,-166.78,0.00011709,2]
[424745653,1781121041000,-860.76641632,0.00011709,2]
[424745658,1781121041000,-245.716351,0.00011744,2]
[424745643,1781121041000,-500.0,0.00011534,2]
[424745723,1781121042000,-860.76641632,0.00012246,2]
[424745725,1781121042000,-860.76641632,0.00012268,2]
[424745724,1781121042000,-954.02,0.0001225,2]
[424745722,1781121042000,-76769.27708525,0.00012244,2]
[424745712,1781121042000,-500.0,0.0001223,2]
[424745721,1781121042000,-177.35541125,0.00012231,2]
[424745731,1781121042000,-276.624785,0.00012332,2]
[424745717,1781121042000,-888436.756258,0.00012231,2]
[424745718,1781121042000,-3603.8928756,0.00012231,2]
[424745720,1781121042000,-5845.4147899,0.00012231,2]
[424745730,1781121042000,-860.76641632,0.0001233,2]
[424745740,1781121042000,-860.76641632,0.00012442,2]
[424745726,1781121042000,-860.76641632,0.00012289,2]
[424745729,1781121042000,-219.12,0.00012329,2]
[424745727,1781121042000,-860.76641632,0.0001231,2]
[424745732,1781121042000,-860.76641632,0.0001235,2]
[424745733,1781121042000,-860.76641632,0.00012369,2]
[424745738,1781121042000,-860.76641632,0.00012425,2]
[424745736,1781121042000,-500.0,0.00012406,2]
[424745737,1781121042000,-860.76641632,0.00012407,2]
[424745734,1781121042000,-860.76641632,0.00012388,2]
[424745735,1781121042000,-500.0,0.00012391,2]
[424745739,1781121042000,-433.0,0.00012441,2]
[424745715,1781121042000,-214581.6578062,0.00012231,2]
[424745728,1781121042000,-213.77,0.00012329,2]
[424745709,1781121042000,-152.33380601,0.0001223,2]
[424745706,1781121042000,-313.04371724,0.0001223,2]
[424745714,1781121042000,-500.0,0.0001223,2]
[424745741,1781121042000,-860.76641632,0.0001246,2]
[424745689,1781121042000,-255.79451904,0.00012087,2]
[424745693,1781121042000,-318.604469,0.00012106,2]
[424745692,1781121042000,-160.0,0.00012106,2]
[424745691,1781121042000,-500.0,0.00012099,2]
[424745694,1781121042000,-477.208939,0.00012106,2]
[424745688,1781121042000,-300.0,0.00012086,2]
[424745690,1781121042000,-860.76641632,0.00012096,2]
[424745696,1781121042000,-500.0,0.00012117,2]
[424745700,1781121042000,-359.87534359,0.00012166,2]
[424745698,1781121042000,-2000.0,0.00012124,2]
[424745710,1781121042000,-500.0,0.0001223,2]
[424745697,1781121042000,-860.76641632,0.00012123,2]
[424745701,1781121042000,-860.76641632,0.00012175,2]
[424745704,1781121042000,-852.44863357,0.00012221,2]
[424745699,1781121042000,-860.76641632,0.0001215,2]
[424745705,1781121042000,-860.76641632,0.00012223,2]
[424745703,1781121042000,-7295.32840731,0.00012214,2]
[424745707,1781121042000,-300.0,0.0001223,2]
[424745711,1781121042000,-500.0,0.0001223,2]
[424745708,1781121042000,-1079.2054042,0.0001223,3]
[424745719,1781121042000,-231216.1426823,0.00012231,2]
[424745713,1781121042000,-500.0,0.0001223,2]
[424745716,1781121042000,-4292.1609417,0.00012231,2]
[424745702,1781121042000,-860.76641632,0.00012199,2]
[424745695,1781121042000,-429.91069,0.00012106,2]
[424745747,1781121042000,-1000.0,0.00012547,2]
[424745750,1781121042000,-281.415283,0.00012582,2]
[424745768,1781121042000,-434.46064,0.00012712,2]
[424745775,1781121042000,-2491.4698901,0.0001285,2]
[424745777,1781121042000,-7295.32840731,0.00012885,2]
[424745778,1781121042000,-47700.0,0.000129,4]
[424745781,1781121042000,-500.0,0.00012948,2]
[424745776,1781121042000,-381.76974956,0.00012856,2]
[424745779,1781121042000,-500.0,0.00012939,2]
[424745783,1781121042000,-500.0,0.00012948,2]
[424745782,1781121042000,-500.0,0.00012948,2]
[424745784,1781121042000,-500.0,0.00012948,2]
[424745780,1781121042000,-500.0,0.00012948,2]
[424745785,1781121042000,-500.0,0.00012948,2]
[424745787,1781121042000,-500.0,0.00012948,2]
[424745793,1781121042000,-500.0,0.00012948,2]
[424745786,1781121042000,-500.0,0.00012948,2]
[424745794,1781121042000,-380.0,0.00012948,2]
[424745796,1781121042000,-203.33254844,0.00013183,2]
[424745795,1781121042000,-500.0,0.00013033,2]
[424745788,1781121042000,-500.0,0.00012948,2]
[424745791,1781121042000,-500.0,0.00012948,2]
[424745792,1781121042000,-500.0,0.00012948,2]
[424745790,1781121042000,-500.0,0.00012948,2]
[424745789,1781121042000,-500.0,0.00012948,2]
[424745798,1781121042000,-1358.0,0.00013222,2]
[424745748,1781121042000,-860.76641632,0.00012558,2]
[424745767,1781121042000,-179.445952,0.00012712,2]
[424745769,1781121042000,-195.41395,0.00012712,2]
[424745797,1781121042000,-541.3104,0.00013213,2]
[424745764,1781121042000,-860.76641632,0.00012703,2]
[424745752,1781121042000,-271.673822,0.00012586,2]
[424745744,1781121042000,-860.76641632,0.0001251,2]
[424745749,1781121042000,-860.76641632,0.00012573,2]
[424745742,1781121042000,-860.76641632,0.00012477,2]
[424745751,1781121042000,-302.350472,0.00012586,2]
[424745743,1781121042000,-860.76641632,0.00012494,2]
[424745745,1781121042000,-860.76641632,0.00012526,2]
[424745770,1781121042000,-860.76641632,0.00012717,2]
[424745753,1781121042000,-860.76641632,0.00012589,2]
[424745756,1781121042000,-860.76641632,0.00012633,2]